[Event "Oceania Zonal Women 2023"]
[Site "Melbourne"]
[Date "2023.01.26"]
[Round "6.1"]
[White "Ryjanova, Julia"]
[Black "Middleton, Jody"]
[Result "1-0"]
[ECO "D23"]
[WhiteElo "2288"]
[BlackElo "1748"]
[Annotator "TA"]
[PlyCount "79"]
[EventDate "2023.01.09"]
[EventType "swiss"]
[EventCountry "AUS"]
[SourceTitle "playchess.com"]
[Source "ChessBase"]
[SourceQuality "1"]
[TimeControl "5400+30"]

{[%evp 16,79,16,17,68,74,69,49,93,39,77,38,30,47,46,42,108,105,131,135,180,158,229,154,156,129,301,279,340,282,280,260,343,328,320,344,545,557,550,541,558,542,692,683,633,684,671,670,826,812,792,801,797,770,1241,1087,1974,1966,2274,2183,2670,2266,12838,9711,12835,3206]} 1. d4 {[%emt 0:00:03]} d5 {[%emt 0:00:12]} 2. c4 {[%emt 0:00:07]} c6 {[%emt 0:00:09]} 3. Nf3 {[%emt 0:00:07]} Nf6 {[%emt 0:00:06]} 4. Qc2 {[%emt 0:00:08]} dxc4 {[%emt 0:00:13]} 5. Qxc4 {[%emt 0:00:16]} Bf5 {[%emt 0:00:18]} 6. g3 {[%emt 0:02:12]} e6 {[%emt 0:00:27]} 7. Bg2 {[%emt 0:00:57]} Nbd7 {[%emt 0:00:27] 7...Be7 is the hot move.} 8. O-O {[%emt 0:00:25]} Be7 {[%emt 0:00:20]} 9. Qb3 {[%emt 0:14:19]} Nb6 {[%emt 0:07:53] D23: Queen's Gambit Accepted: 3 Nf3 Nf6 sidelines.} (9... Qb6 $11) 10. Nc3 $14 {[%emt 0:04:20]} O-O {[%emt 0:02:33]} 11. a4 {[%emt 0:12:33][%cal Ba2a4,Ba4a5][%mdl 32] [#]} Qc8 $146 {[%emt 0:08:40] White is slightly better.} ({Predecessor:} 11... a5 12. Re1 Bb4 13. Bd2 Qd6 14. Rad1 Ne4 15. Ne5 Nxd2 16. Rxd2 Qe7 17. Rc1 Rfd8 18. Rdd1 {½-½ Agrest,E (2616)-Doettling,F (2532) FRA-chT Gp-A 2004 (7)}) 12. Nd2 {[%emt 0:07:23]} (12. Ne5 $16) 12... Rd8 {[%emt 0:09:11]} 13. e4 {[%emt 0:02:14]} (13. a5 $5 {[%cal Ra5b6]} Nbd5 14. e4 Nxc3 15. bxc3 $14) 13... Bg6 {[%emt 0:00:10]} 14. a5 $36 {[%emt 0:01:18][%mdl 2048] White has good play.} Nbd7 {[%emt 0:00:08]} 15. Nc4 {[%emt 0:01:36]} Bh5 {[%emt 0:12:30]} (15... b5 $14 16. axb6 Nxb6) 16. h3 $16 {[%emt 0:02:22]} Nf8 {[%emt 0:02:46]} 17. Be3 {[%emt 0:03:05]} h6 {[%emt 0:01:53]} 18. Rac1 {[%emt 0:02:05]} g5 {[%emt 0:09:53]} (18... Bg6 $16 {might work better.} 19. Ne5 Bh7) 19. Ne5 {[%emt 0:06:54][%cal Oa5a6] a6! is the strong threat.} N6d7 {[%emt 0:10:48]} 20. Nd3 {[%emt 0:07:45] White has more active pieces.} Kg7 $2 {[%emt 0:04:20] Black cannot hold the game after this.} (20... b6 $16) 21. f4 $18 {[%emt 0:02:32]} Qc7 {[%emt 0:04:20]} 22. Qa2 {[%emt 0:02:26]} f6 {[%emt 0:02:30]} 23. b4 {[%emt 0:06:17]} Bf7 {[%emt 0:06:06]} 24. Qf2 {[%emt 0:00:21]} Nh7 {[%emt 0:01:45]} 25. d5 {[%emt 0:05:21]} Rf8 {[%emt 0:04:59] [#]} (25... gxf4 $142 26. Bxf4 (26. Qxf4 Qxf4 27. Bxf4 e5 $18) 26... e5) 26. Nb5 $1 {[%emt 0:03:49][%mdl 576] Pin, Deflection, Double Attack. White is clearly winning.} Qd8 {[%emt 0:08:03]} 27. dxc6 {[%emt 0:00:35]} bxc6 {[%emt 0:00:05]} 28. Nxa7 {[%emt 0:01:19]} c5 {[%emt 0:02:41]} 29. Nc6 {[%emt 0:00:18]} Qe8 {[%emt 0:00:07]} 30. Nxe7 {[%emt 0:00:35]} Qxe7 {[%emt 0:00:04]} 31. Nxc5 {[%emt 0:00:11]} Rfb8 {[%emt 0:01:33]} 32. Nxd7 {[%emt 0:01:30]} Qxd7 {[%emt 0:00:06]} 33. e5 {[%emt 0:00:17]} f5 {[%emt 0:01:12]} 34. Rfd1 {[%emt 0:00:54]} Qb5 {[%emt 0:00:28]} 35. Rc7 {[%emt 0:02:48]} Qxb4 {[%emt 0:00:25]} 36. Rdd7 {[%emt 0:00:14]} Rf8 {[%emt 0:00:36]} 37. Bxa8 {[%emt 0:00:19] Bc5 would kill now. A strong pair of Bishops.} Qxa5 {[%emt 0:00:29]} 38. Bf3 {[%emt 0:00:13][%cal Ba8f3,Bf3h5,Bh5f7][%mdl 32] Threatening mate with Bc5.} Kg8 {[%emt 0:00:29] [#]} 39. Bh5 $3 {[%emt 0:01:17][%cal Rh5f7]} Rb8 {[%emt 0:00:30]} (39... Kg7 40. Bc5) 40. Bxf7+ {[%emt 0:00:55] Excellently played by Ryjanova!   Weighted Error Value: White=0.15 (very precise) /Black=0.58} 1-0

[Event "Oceania Zonal Women 2023"]
[Site "Melbourne"]
[Date "2023.01.26"]
[Round "6.2"]
[White "O'Carroll, Om"]
[Black "Hardegen, Kathryn"]
[Result "1/2-1/2"]
[ECO "C10"]
[WhiteElo "1525"]
[BlackElo "1887"]
[Annotator "NA RC COMBH"]
[PlyCount "156"]
[EventDate "2023.01.09"]
[EventType "swiss"]
[EventCountry "AUS"]
[SourceTitle "playchess.com"]
[Source "ChessBase"]
[SourceQuality "1"]
[TimeControl "5400+30"]

1. e4 {[%emt 0:00:02]} e6 {[%emt 0:00:12]} 2. d4 {[%emt 0:00:12]} d5 {[%emt 0:00:15]} 3. Nc3 {[%emt 0:00:10]} dxe4 {[%emt 0:02:13]} 4. Nxe4 {[%emt 0:00:13]} Nf6 {[%emt 0:00:03]} 5. Nxf6+ {[%emt 0:03:04]} Qxf6 {[%emt 0:00:17]} 6. Nf3 {[%emt 0:01:27]} h6 {[%emt 0:01:27]} 7. g3 {[%emt 0:02:21]} Bd6 {[%emt 0:03:05]} 8. Bg2 {[%emt 0:00:28]} O-O {[%emt 0:00:35]} 9. O-O {[%emt 0:00:14]} c5 {[%emt 0:02:00]} 10. c3 {[%emt 0:05:17]} Nc6 {[%emt 0:01:29]} 11. Be3 {[%emt 0:01:10]} cxd4 {[%emt 0:01:34]} 12. Nxd4 {[%emt 0:00:18]} Nxd4 {[%emt 0:03:33]} 13. Bxd4 {[%emt 0:02:38]} e5 {[%emt 0:01:52]} 14. Be3 {[%emt 0:00:15]} Qe7 {[%emt 0:06:06]} 15. Qc2 {[%emt 0:03:54]} a6 {[%emt 0:06:56]} 16. Rad1 {[%emt 0:04:37]} Bg4 {[%emt 0:05:28]} 17. Rd2 {[%emt 0:05:42]} Rad8 {[%emt 0:04:30]} 18. Qe4 {[%emt 0:02:38]} Bc8 {[%emt 0:00:16]} 19. Rfd1 {[%emt 0:02:33]} Bc7 {[%emt 0:08:18]} 20. Rxd8 {[%emt 0:08:52]} Rxd8 {[%emt 0:00:09]} 21. Rxd8+ {[%emt 0:00:36]} Qxd8 {[%emt 0:00:40]} 22. Qd5 {[%emt 0:00:56]} Qxd5 {[%emt 0:10:36]} 23. Bxd5 {[%emt 0:00:07]} b5 {[%emt 0:01:13]} 24. Kg2 {[%emt 0:02:24]} Bd6 {[%emt 0:00:09]} 25. Kf3 {[%emt 0:00:40]} Kf8 {[%emt 0:00:11]} 26. c4 {[%emt 0:01:22]} bxc4 {[%emt 0:00:31]} 27. Bxc4 {[%emt 0:00:06]} Bb7+ {[%emt 0:00:22]} 28. Ke2 {[%emt 0:00:49]} Ke7 {[%emt 0:01:18]} 29. a3 {[%emt 0:01:42]} f5 {[%emt 0:02:01]} 30. Bd2 {[%emt 0:03:27]} g5 {[%emt 0:06:51]} 31. b4 {[%emt 0:02:50]} f4 {[%emt 0:01:05]} 32. a4 {[%emt 0:04:24]} h5 {[%emt 0:02:56]} 33. b5 {[%emt 0:02:04]} axb5 {[%emt 0:00:16]} 34. Bxb5 {[%emt 0:00:37]} Bc5 {[%emt 0:03:51]} 35. Be1 {[%emt 0:08:46]} Ke6 {[%emt 0:05:27]} 36. Be8 {[%emt 0:07:04]} Ba6+ {[%emt 0:02:24]} 37. Kd2 {[%emt 0:03:20]} h4 {[%emt 0:02:17]} 38. gxh4 {[%emt 0:01:07]} gxh4 {[%emt 0:00:01]} 39. Bc6 {[%emt 0:01:43]} Kd6 {[%emt 0:01:26]} 40. Be4 {[%emt 0:00:36]} Bb4+ {[%emt 0:01:21]} 41. Kd1 {[%emt 0:00:07]} Bxe1 {[%emt 0:01:20]} 42. Kxe1 {[%emt 0:00:01]} Kc5 {[%emt 0:01:35]} 43. Kd2 {[%emt 0:00:11]} Kb4 {[%emt 0:04:45]} 44. Bc6 {[%emt 0:01:05]} Bc4 {[%emt 0:00:35]} 45. Kc2 {[%emt 0:01:34]} Be6 {[%emt 0:01:23]} 46. Kd3 {[%emt 0:00:24]} Bf5+ {[%emt 0:01:15]} 47. Be4 {[%emt 0:01:19]} Bd7 {[%emt 0:00:34]} 48. Bd5 {[%emt 0:00:15]} Kc5 {[%emt 0:02:19]} 49. Ke4 {[%emt 0:00:56]} Kd6 {[%emt 0:00:29]} 50. a5 {[%emt 0:00:37]} Be8 {[%emt 0:00:47]} 51. Bb7 {[%emt 0:01:46]} Bg6+ {[%emt 0:00:19]} 52. Kf3 {[%emt 0:00:07]} Bh5+ {[%emt 0:00:32]} 53. Kg2 {[%emt 0:00:48]} Bg4 {[%emt 0:00:33]} 54. f3 {[%emt 0:01:54]} Bd7 {[%emt 0:00:35]} 55. Kf2 {[%emt 0:00:26]} Bb5 {[%emt 0:00:50]} 56. Ke1 {[%emt 0:00:54]} Kc7 {[%emt 0:00:30]} 57. a6 {[%emt 0:00:45]} Kb6 {[%emt 0:00:26]} 58. Kd2 {[%emt 0:00:14]} Bf1 {[%emt 0:01:16]} 59. Bc8 {[%emt 0:05:15]} Bb5 {[%emt 0:00:47]} 60. Ke1 {[%emt 0:02:02]} Bxa6 {[%emt 0:00:34]} 61. Bf5 {[%emt 0:06:13]} Bb7 {[%emt 0:00:47]} 62. Ke2 {[%emt 0:00:41]} Kc5 {[%emt 0:00:11]} 63. Bg6 {[%emt 0:00:57]} Kd4 {[%emt 0:00:17]} 64. Bf5 {[%emt 0:00:51]} Kc3 {[%emt 0:01:19]} 65. Bg6 {[%emt 0:00:44]} Kd4 {[%emt 0:00:49]} 66. Bf5 {[%emt 0:00:21]} e4 {[%emt 0:00:21]} 67. fxe4 {[%emt 0:00:23]} Bxe4 {[%emt 0:00:07]} 68. Bg4 {[%emt 0:00:15]} Bc6 {[%emt 0:00:58]} 69. Kf2 {[%emt 0:00:14]} Ke5 {[%emt 0:00:23]} 70. Bd1 {[%emt 0:00:46]} Kf5 {[%emt 0:00:47]} 71. Be2 {[%emt 0:00:11]} Kg5 {[%emt 0:00:49]} 72. Bd1 {[%emt 0:00:10]} Bd7 {[%emt 0:00:19]} 73. Bf3 {[%emt 0:00:33]} Bg4 {[%emt 0:00:32]} 74. Bc6 {[%emt 0:00:10]} Bd1 {[%emt 0:00:55]} 75. Bd7 {[%emt 0:00:31]} f3 {[%emt 0:00:56]} 76. Be6 {[%emt 0:00:10]} Kf4 {[%emt 0:00:06]} 77. Bd7 {[%emt 0:00:12]} Bc2 {[%emt 0:00:22]} 78. Be6 {[%emt 0:00:12]} Ke5 {[%emt 0:01:39]} 1/2-1/2

[Event "Oceania Zonal Women 2023"]
[Site "Melbourne"]
[Date "2023.01.26"]
[Round "6.3"]
[White "Fan, Chloe"]
[Black "Zhang, Jilin"]
[Result "0-1"]
[ECO "B51"]
[WhiteElo "1554"]
[BlackElo "2212"]
[Annotator "TA"]
[PlyCount "138"]
[EventDate "2023.01.09"]
[EventType "swiss"]
[EventCountry "AUS"]
[SourceTitle "playchess.com"]
[Source "ChessBase"]
[SourceQuality "1"]
[TimeControl "5400+30"]

{[%evp 9,138,16,22,14,24,24,36,33,46,17,29,0,25,-20,-29,-27,-25,-26,-24,-32,-26,-32,-12,-34,-11,-6,0,0,0,0,0,0,0,0,0,0,0,0,3,-17,-12,-19,0,0,0,0,0,0,0,0,0,0,0,0,0,0,0,-14,-21,-137,0,0,0,0,0,0,0,-14,-5,-11,-8,-10,0,0,0,0,0,0,0,0,0,0,0,0,0,0,0,0,0,0,0,0,0,-94,-75,-268,-268,-268,0,0,0,-268,-275,-275,-297,-1236,-1229,-1145,-849,-1305,-1539,-1406,-1385,-5269,-4610,-29979,-29980,-29980,-29981,-29981,-29982,-29982,-29983,-29983,-29984,-29985,-29986,-29986,-29987,-29987,-29986]} 1. e4 {[%emt 0:00:03]} c5 {[%emt 0:00:06]} 2. Nf3 {[%emt 0:00:05]} d6 {[%emt 0:00:18]} 3. Bb5+ {[%emt 0:00:06]} Nd7 {[%emt 0:00:15]} 4. O-O {[%emt 0:00:08]} a6 {[%emt 0:00:27]} 5. Bd3 {[%emt 0:00:08]} Ngf6 {[%emt 0:01:33]} 6. Re1 {[%emt 0:00:56] B51: Sicilian: Moscow Variation (3 Bb5+) without 3...Bd7.} g6 {[%emt 0:01:12]} 7. c3 {[%emt 0:00:25]} b5 {[%emt 0:00:54]} 8. Bc2 {[%emt 0:00:29] White is slightly better.} c4 {[%emt 0:00:28]} 9. d4 {[%emt 0:02:13] e5 would be deadly.} cxd3 {[%emt 0:00:07] [#]} 10. Bxd3 $146 {[%emt 0:01:07]} (10. Qxd3 $5 {[%cal Ra2a4]} Bg7 11. a4 $14) ({Predecessor:} 10. Qxd3 Bg7 11. Bg5 h6 12. Be3 Nc5 13. Bxc5 dxc5 14. Qe3 Qc7 15. e5 Nd5 16. Qe2 {1-0 De la Mata Rodriguez,J (1491)-Rios Gil,S (1461) Alcorcon Diagonal op 1st 2022 (7)}) 10... Nc5 {[%emt 0:02:33]} 11. Bg5 {[%emt 0:06:26]} Bg7 {[%emt 0:07:40]} 12. Bc2 {[%emt 0:03:09]} O-O {[%emt 0:00:59]} 13. Nbd2 {[%emt 0:03:11]} Bb7 {[%emt 0:00:22]} 14. Qe2 {[%emt 0:04:16]} Ne6 {[%emt 0:06:14]} 15. Be3 {[%emt 0:10:11]} Rc8 {[%emt 0:06:21]} 16. Nd4 {[%emt 0:07:55]} Nxd4 {[%emt 0:05:26]} 17. Bxd4 {[%emt 0:00:09]} e5 {[%emt 0:00:41]} 18. Be3 {[%emt 0:01:28]} d5 {[%emt 0:00:20]} 19. exd5 {[%emt 0:03:53]} Nxd5 {[%emt 0:00:11]} 20. Rad1 {[%emt 0:05:21]} Qc7 {[%emt 0:08:44]} 21. Bb3 {[%emt 0:06:49]} h6 {[%emt 0:05:13]} 22. Ne4 {[%emt 0:02:35]} Nxe3 {[%emt 0:00:36]} 23. Qxe3 {[%emt 0:00:16]} Rfd8 {[%emt 0:00:13] Dodges Nd6} 24. f3 {[%emt 0:03:37]} a5 {[%emt 0:09:03]} 25. a3 {[%emt 0:01:26]} Kh7 {[%emt 0:06:36]} (25... a4 $5 {[%cal Ra4b3]} 26. Ba2 Bf8 $15) 26. h4 {[%emt 0:08:35][%cal Oh4h5]} f5 {[%emt 0:05:00]} 27. Rxd8 {[%emt 0:01:51]} Rxd8 {[%emt 0:03:05][%cal Bc8d8,Bd8d5,Bd5c5][%mdl 32]} 28. Nc5 {[%emt 0:00:33] Black must now prevent Ne6.} Bd5 {[%emt 0:00:35]} 29. Bxd5 {[%emt 0:01:30]} Rxd5 {[%emt 0:00:06]} 30. Ne6 {[%emt 0:01:12]} Qe7 {[%emt 0:03:27]} 31. Nxg7 {[%emt 0:00:25]} Kxg7 $11 {[%emt 0:00:30][%mdl 4096] Endgame KQR-KQR} 32. g3 {[%emt 0:04:25]} h5 {[%emt 0:04:15]} 33. Qb6 {[%emt 0:05:29]} f4 {[%emt 0:05:45]} 34. Qc6 {[%emt 0:03:44]} (34. Qxa5 {leads to mate.} Qc5+ 35. Kh1 Qf2 36. Qc7+ Kh6) (34. Qf2 $11) 34... Rc5 {[%emt 0:03:26]} (34... Rd2 $1 $17 {( -> ...Qa7+)} 35. b4 (35. Qxb5 Qa7+ 36. Kh1 Rh2+ {[%mdl 64] Decoy} 37. Kxh2 Qf2+ 38. Kh1 Qxe1+ 39. Kg2 Qxg3+ 40. Kf1 Qxf3+ 41. Kg1 Qg3+ 42. Kf1 f3 $19) 35... Qa7+ 36. Qc5 Qxc5+ 37. bxc5 Rd5 38. gxf4 exf4 39. Re7+ Kf6) 35. Qe4 {[%emt 0:00:17]} fxg3 {[%emt 0:00:14]} 36. Kg2 {[%emt 0:00:44]} Qd6 {[%emt 0:05:41]} 37. Kxg3 {[%emt 0:01:01]} a4 {[%emt 0:01:02]} 38. f4 {[%emt 0:03:22]} exf4+ {[%emt 0:01:52]} (38... Qe7 {is more complex.} 39. Re3 exf4+ 40. Qxf4 Qd8) 39. Qxf4 {[%emt 0:00:06]} Qxf4+ {[%emt 0:01:24]} 40. Kxf4 {[%emt 0:00:02] KR-KR} Rc4+ {[%emt 0:01:14]} 41. Kg3 $1 {[%emt 0:01:50]} Rg4+ {[%emt 0:01:13]} 42. Kh3 {[%emt 0:00:05]} Kf6 {[%emt 0:00:25] Dodges Re5} 43. Re8 {[%emt 0:02:10]} Rc4 {[%emt 0:00:33]} 44. Kg3 {[%emt 0:00:26]} Rc5 {[%emt 0:01:31]} 45. Rb8 {[%emt 0:01:34]} g5 {[%emt 0:02:03]} 46. hxg5+ {[%emt 0:00:07]} Kxg5 {[%emt 0:00:05]} 47. Rg8+ {[%emt 0:00:39]} Kf5 {[%emt 0:00:16]} 48. Kf3 {[%emt 0:01:50]} Rd5 {[%emt 0:01:04]} 49. Rb8 {[%emt 0:04:27]} Kg5 {[%emt 0:01:23]} 50. Rg8+ {[%emt 0:00:47]} Kh4 {[%emt 0:00:18]} 51. Rh8 {[%emt 0:01:23]} (51. Ra8 $11 {keeps the balance.}) 51... Rd2 $17 {[%emt 0:00:17]} 52. Re8 $2 {[%emt 0:00:53]} (52. Ra8 $17 {was worth a try.}) 52... Rxb2 $19 {[%emt 0:00:39]} 53. Re4+ {[%emt 0:00:13] [#]} Kh3 $2 {[%emt 0:01:16]} (53... Kg5 $1 $19 54. Re5+ Kg6) 54. Re1 $11 {[%emt 0:00:16]} Kh4 $2 {[%emt 0:00:40][%mdl 8192]} (54... Kh2 $11) 55. Re4+ $19 {[%emt 0:00:05] [#] Black converts the advantage convincingly.} Kg5 $1 {[%emt 0:00:36]} 56. Re5+ {[%emt 0:00:04]} Kg6 {[%emt 0:00:09] And now ...Rb3 would win.} 57. Ke3 $2 {[%emt 0:01:22]} (57. Kg3) 57... h4 {[%emt 0:00:31]} 58. Re6+ {[%emt 0:00:50]} Kg5 {[%emt 0:00:15] Threatens to win with ...h3.} 59. Re8 {[%emt 0:00:38]} h3 {[%emt 0:00:23]} 60. Rh8 {[%emt 0:00:12]} h2 {[%emt 0:00:08]} 61. Kd4 {[%emt 0:00:35]} Kf4 {[%emt 0:00:21]} 62. c4 {[%emt 0:00:25]} bxc4 {[%emt 0:00:40] Black mates.} 63. Kxc4 {[%emt 0:00:03]} Kg3 {[%emt 0:00:09]} 64. Rg8+ {[%emt 0:00:12]} Kf2 {[%emt 0:00:14]} 65. Rf8+ {[%emt 0:00:28]} Kg1 {[%emt 0:00:10]} 66. Rg8+ {[%emt 0:01:03]} Rg2 {[%emt 0:00:10]} 67. Rh8 {[%emt 0:00:30]} h1=Q {[%emt 0:00:14]} 68. Rxh1+ {[%emt 0:00:05]} Kxh1 {[%emt 0:00:05]} 69. Kb4 {[%emt 0:00:06]} Rg4+ {[%emt 0:00:05] Weighted Error Value: White=0.31/Black=0.10 (very precise)} 0-1

[Event "Oceania Zonal Women 2023"]
[Site "Melbourne"]
[Date "2023.01.26"]
[Round "6.4"]
[White "Szuveges, Narelle"]
[Black "Punsalan, Vyanla M"]
[Result "1/2-1/2"]
[ECO "A87"]
[WhiteElo "1566"]
[BlackElo "1989"]
[Annotator "TA"]
[PlyCount "127"]
[EventDate "2023.01.09"]
[EventType "swiss"]
[EventCountry "AUS"]
[SourceTitle "playchess.com"]
[Source "ChessBase"]
[SourceQuality "1"]
[TimeControl "5400+30"]

{[%evp 13,127,18,78,45,64,69,78,73,84,71,180,162,245,180,178,189,209,193,181,121,128,141,175,212,181,209,200,200,177,86,187,63,147,146,187,64,69,75,85,52,65,72,61,54,136,70,229,89,647,651,756,739,715,163,173,170,377,377,367,336,316,291,520,521,515,50,48,72,156,159,202,0,0,0,195,8,8,8,43,8,191,169,158,42,50,44,55,0,0,0,0,0,0,0,8,8,8,8,8,0,0,0,0,0,0,-16,-16,-16,-12,-14,-13,-14,0,0,0,-14]} 1. d4 {[%emt 0:00:05]} f5 {[%emt 0:00:19]} 2. g3 {[%emt 0:00:09]} Nf6 {[%emt 0:00:20]} 3. Bg2 {[%emt 0:00:09]} d6 {[%emt 0:00:42]} 4. Nf3 {[%emt 0:01:51]} g6 {[%emt 0:01:41]} 5. c4 {[%emt 0:01:05]} Bg7 {[%emt 0:02:40]} 6. Nc3 {[%emt 0:04:01]} O-O {[%emt 0:01:53]} 7. O-O {[%emt 0:00:43]} h6 {[%emt 0:02:18]} (7... Na6 $11 {remains equal.}) 8. Re1 {[%emt 0:03:57] [#] A87: Dutch Defence: Leningrad System: 5 Nf3.} Na6 $146 {[%emt 0:08:22]} ({Predecessor:} 8... g5 9. e4 fxe4 10. Nxe4 Nxe4 11. Rxe4 Bf5 12. Re1 Qd7 13. Qb3 Nc6 14. d5 Na5 15. Qb4 b6 {0-1 Molina,R (2418)-Rodriguez Vila,A (2481) Mario Covas 10th 2011 (6)}) 9. e4 {[%emt 0:01:10]} fxe4 {[%emt 0:07:49]} 10. Nxe4 {[%emt 0:00:49] White is better.} Nxe4 {[%emt 0:02:55]} 11. Rxe4 {[%emt 0:00:22]} Bf5 {[%emt 0:00:33] [#]} (11... c6 $16) 12. Nh4 $1 $18 {[%emt 0:02:45] Strongly threatening Nxf5.} d5 {[%emt 0:15:48]} (12... c6 $142) (12... Qe8 13. Nxf5) 13. cxd5 {[%emt 0:00:34]} Bxe4 {[%emt 0:00:17]} 14. Bxe4 {[%emt 0:00:10]} g5 {[%emt 0:00:32]} 15. Ng6 {[%emt 0:06:16][%mdl 1024] White has strong compensation.} Rf6 {[%emt 0:02:03] Black is weak on the light squares} 16. Ne5 {[%emt 0:04:53]} (16. Qh5 $18) 16... Qd6 $16 {[%emt 0:10:16]} 17. Be3 {[%emt 0:04:23] White is more active.} Nc5 {[%emt 0:04:27]} 18. Nc4 {[%emt 0:01:48]} Qa6 {[%emt 0:00:58]} 19. dxc5 {[%emt 0:00:44]} Qxc4 {[%emt 0:01:51]} 20. Bd3 {[%emt 0:01:39] A strong pair of Bishops.} Qb4 {[%emt 0:00:18]} (20... Qxd5 $2 21. Bh7+ Kxh7 22. Qxd5 $18) 21. Qc2 {[%emt 0:06:43]} (21. Rb1 $18 {is more deadly.}) 21... Kh8 {[%emt 0:02:49]} (21... Rf3 $16 {was worth a try.}) 22. Bc4 {[%emt 0:02:56]} ({Only move:} 22. Be2 $1 $18 {Black must now prevent a3.} Rf7 23. Rb1) 22... b5 {[%emt 0:01:28]} (22... Rf3 $14) 23. Bb3 $1 {[%emt 0:06:06]} Raf8 {[%emt 0:06:03]} 24. Rd1 {[%emt 0:14:08]} (24. h3 $1 $18) 24... Rf5 $1 $14 {[%emt 0:03:52]} 25. a3 {[%emt 0:02:55]} Qg4 {[%emt 0:03:41]} 26. d6 {[%emt 0:00:59]} exd6 {[%emt 0:00:12]} 27. cxd6 {[%emt 0:00:38]} cxd6 {[%emt 0:00:35]} 28. Rxd6 {[%emt 0:02:12]} Re5 {[%emt 0:04:22] Prevents Be6} (28... R5f6 $1 $14 29. Rxf6 Rxf6) 29. Qd2 $40 {[%emt 0:10:11][%mdl 128] White has some attack.} (29. Bd2 $16 Qe2 30. Bc3 Qxc2 31. Bxc2) 29... Ree8 $2 {[%emt 0:05:41]} (29... Rxe3 $14 30. Qxe3 Qf3) 30. Bd1 {[%emt 0:03:18]} (30. h3 $18 {has better winning chances.} Qxh3 31. Bd4) 30... Qe4 {[%emt 0:01:46][%mdl 8192]} (30... Qc4 $16) 31. Bc2 $18 {[%emt 0:06:48]} Qc4 {[%emt 0:03:34][%cal Oe8e3]} 32. b3 $1 {[%emt 0:00:47]} Qg8 {[%emt 0:03:07]} 33. Qd3 $2 {[%emt 0:01:50]} (33. Bxa7 Rf6 34. Be3 Rc8 35. Rxf6 Bxf6 $18) (33. Bd4 Re6 34. Rxe6 (34. Bxa7 Rxd6 35. Qxd6 Qf7 $16) (34. Bxg7+ Kxg7 35. Rd7+ Rf7 $16) 34... Qxe6 35. Qd3 (35. Bxa7 Rf7 $16)) 33... Rf6 {[%emt 0:00:24]} 34. Rd7 {[%emt 0:02:05]} (34. Bxa7 $2 Rxd6 35. Qxd6 Re1+ 36. Kg2 Qa8+ 37. Kh3 Qc8+ 38. g4 Qxc2 $19) 34... Ref8 $2 {[%emt 0:01:22]} (34... Rfe6 35. Rxa7 (35. Bxa7 Re1+ 36. Kg2 R1e7 $16) (35. Qxb5 R6e7 $16) 35... Rd8 36. Qxb5 Rxe3 37. fxe3 Qe6) 35. Bxa7 {[%emt 0:00:54]} ({Less strong is} 35. Qxb5 R6f7 36. Rxa7 (36. Bxa7 Rxd7 37. Qxd7 Rf7 $16) 36... Rxa7 37. Bxa7 Rd8 $18) (35. Rxa7 R6f7 36. Rxf7 Rxf7 37. Qxb5 Rc7 $18) 35... R6f7 {[%emt 0:00:34]} 36. Rxf7 {[%emt 0:01:52]} ({Weaker is} 36. Qxb5 Rxd7 37. Qxd7 Rf7 $16) 36... Rxf7 {[%emt 0:00:02]} 37. Bc5 {[%emt 0:00:26]} b4 $2 {[%emt 0:01:38]} (37... Rc7) 38. axb4 {[%emt 0:00:30]} Bf6 {[%emt 0:00:23]} 39. Qg6 $2 {[%emt 0:03:39]} (39. b5 $18) 39... Qxg6 $14 {[%emt 0:00:34]} 40. Bxg6 {[%emt 0:00:07][%mdl 4096] Endgame KRB-KB} Rb7 {[%emt 0:00:19]} (40... Rd7 $142) 41. Be4 $16 {[%emt 0:00:22]} Rb8 {[%emt 0:00:50]} 42. Bd6 $2 {[%emt 0:00:14]} (42. Bc6 $1 $18) 42... Rb6 $11 {[%emt 0:00:38]} 43. Bc5 {[%emt 0:00:09]} (43. Bf8 $11) 43... Rb8 $1 $18 {[%emt 0:00:06] [#]} 44. f4 $2 {[%emt 0:00:43]} ({Better is} 44. Bc6 $1 $18) 44... gxf4 $11 {[%emt 0:00:34]} 45. gxf4 {[%emt 0:00:06] next Bc6 is good for White.} Kg7 {[%emt 0:00:13]} 46. Kf2 {[%emt 0:00:19] And now Bc6 would win.} Kf7 $2 {[%emt 0:00:18] [#]} (46... Bc3 $1 $11) 47. Bd5+ $1 $18 {[%emt 0:00:18]} Kg6 {[%emt 0:01:15]} 48. Kf3 {[%emt 0:00:17]} (48. Bc6 $16) 48... Bc3 $14 {[%emt 0:00:33]} 49. Ke4 {[%emt 0:01:04]} Bxb4 {[%emt 0:00:28]} 50. Bxb4 {[%emt 0:00:12]} (50. f5+ $14 Kg5 51. Be3+ Kf6 52. Bd4+ (52. Bxh6 Rh8 $11) 52... Kg5 53. h3) 50... Rxb4+ {[%emt 0:00:16] KR-KB. The position is equal.} 51. Ke5 {[%emt 0:00:13]} Kg7 {[%emt 0:00:26]} 52. Bc4 {[%emt 0:00:20]} Rb8 {[%emt 0:00:14]} 53. f5 {[%emt 0:00:16]} Re8+ {[%emt 0:01:12]} 54. Be6 {[%emt 0:00:16]} Rf8 {[%emt 0:00:28]} 55. h3 {[%emt 0:00:39]} h5 {[%emt 0:00:26]} 56. Bc4 {[%emt 0:00:42]} (56. Kd6 $5 Kf6 $8 57. b4 Rd8+ 58. Bd7 $11) 56... Re8+ {[%emt 0:00:17]} 57. Be6 {[%emt 0:00:20]} Rf8 {[%emt 0:00:09]} 58. Bd5 {[%emt 0:01:25]} (58. Kd6 $5 Kf6 $8 59. b4 Rd8+ 60. Bd7 $11) 58... Re8+ {[%emt 0:00:08]} 59. Kf4 {[%emt 0:00:14]} Kf6 {[%emt 0:00:17]} 60. Bf3 {[%emt 0:02:14]} Rb8 {[%emt 0:00:53] ...Rb4+ would be deadly.} 61. Bd5 {[%emt 0:01:02]} Rd8 {[%emt 0:00:47]} 62. Ke4 {[%emt 0:00:47]} Re8+ {[%emt 0:00:42]} 63. Be6 {[%emt 0:00:23]} Rd8 {[%emt 0:00:18]} 64. Bd5 {[%emt 0:00:15] Weighted Error Value: White=0.46/Black=0.44} 1/2-1/2